bitfinex/quotes_SOLUSD_20230401
["timestamp","ask_amount","ask_price","bid_price","bid_amount"]
[1680381925676,115.4625,21.12,21.111,10.0]
[1680381929281,115.4625,21.12,21.112,17.0]
[1680381929488,115.4625,21.12,21.113,10.0]
[1680381934202,115.4625,21.12,21.111,10.0]
[1680381934894,115.4625,21.12,21.109,10.0]
[1680381935095,115.4625,21.12,21.107,24.21725337]
[1680381935096,136.6625,21.12,21.107,10.0]
[1680381937800,136.6625,21.12,21.108,17.0]
[1680381938002,136.6625,21.12,21.109,10.0]
[1680381938300,136.6625,21.12,21.107,10.0]
[1680381938902,136.6625,21.12,21.108,17.0]
[1680381939405,136.6625,21.12,21.107,10.0]
[1680381940403,136.6625,21.12,21.101,30.0]
[1680381940606,17.0,21.119,21.102,10.0]
[1680381940809,10.0,21.118,21.102,10.0]
[1680381945108,17.0,21.117,21.102,10.0]
[1680381945296,17.0,21.117,21.101,20.0]
[1680381945498,17.0,21.117,21.099,20.0]
[1680381945705,10.0,21.116,21.1,30.0]
[1680381945907,10.0,21.114,21.101,20.0]
[1680381946407,10.0,21.114,21.098,93.70747388]
[1680381946408,37.0,21.113,21.098,18.953651]
[1680381946608,37.0,21.113,21.099,30.0]
[1680381947000,26.71,21.11,21.098,18.953651]
[1680381947311,17.0,21.109,21.098,18.953651]
[1680381947516,10.0,21.108,21.098,18.953651]
[1680381950218,10.0,21.109,21.098,18.953651]
[1680381951115,26.71,21.11,21.098,18.953651]
[1680381953716,26.71,21.11,21.092,10.0]
[1680381953919,10.0,21.108,21.094,10.0]
[1680381954120,108.3763,21.109,21.094,10.0]
[1680381954321,108.3763,21.109,21.096,10.0]
[1680381955423,10.0,21.108,21.096,10.0]
[1680381955617,127.0059,21.108,21.096,10.0]
[1680381956209,127.0059,21.108,21.095,17.0]
[1680381956210,127.0059,21.108,21.094,10.0]
[1680381960525,117.0059,21.108,21.094,10.0]
[1680381960709,27.0,21.107,21.094,10.0]
[1680381963818,27.0,21.107,21.092,10.0]
[1680381967431,27.0,21.107,21.091,37.916443]
[1680381968623,27.0,21.107,21.092,10.0]
[1680381970936,27.0,21.107,21.089,10.0]
[1680381971117,20.0,21.106,21.088,10.0]
[1680381971317,10.0,21.104,21.088,10.0]
[1680381971619,10.0,21.102,21.088,10.0]
[1680381971931,20.0,21.101,21.088,10.0]
[1680381972310,20.0,21.101,21.088,9.0]
[1680381972511,26.71,21.1,21.088,9.0]
[1680381976108,17.0,21.099,21.088,9.0]
[1680381977142,17.0,21.099,21.086,10.0]
[1680381977440,113.9192,21.098,21.086,10.0]
[1680381977936,10.0,21.096,21.084,27.87870198]
[1680381980824,17.0,21.095,21.084,27.87870198]
[1680381983326,17.0,21.095,21.085,10.0]
[1680381983530,17.0,21.096,21.085,10.0]
[1680381984943,17.0,21.096,21.084,27.87870198]
[1680381985249,20.0,21.095,21.084,27.87870198]
[1680381985627,27.0,21.094,21.084,27.87870198]
[1680381985828,10.0,21.092,21.084,27.87870198]
[1680381986036,20.0,21.091,21.078,10.0]
[1680381987431,20.0,21.091,21.081,10.0]
[1680381987733,20.0,21.093,21.081,10.0]
[1680381989938,20.0,21.093,21.082,17.0]
[1680381990125,20.0,21.095,21.083,10.0]
[1680381992844,17.0,21.094,21.083,10.0]
[1680381993140,20.0,21.093,21.083,10.0]
[1680381997244,20.0,21.093,21.08,18.96852]
[1680381997446,17.0,21.092,21.08,18.96852]
[1680381997623,20.0,21.091,21.08,18.96852]
[1680381998656,20.0,21.091,21.081,10.0]
[1680381999950,108.4462,21.096,21.081,10.0]
[1680382000332,108.4462,21.096,21.083,10.0]
[1680382000533,26.71,21.1,21.083,10.0]
[1680382002369,17.0,21.097,21.083,10.0]
[1680382003649,26.71,21.1,21.083,10.0]
[1680382003856,26.71,21.1,21.084,17.0]
[1680382004057,26.71,21.1,21.085,10.0]
[1680382022462,21.33,21.1,21.085,10.0]
[1680382023151,21.33,21.1,21.085,9.5]
[1680382024965,21.33,21.1,21.086,17.0]
[1680382025265,21.33,21.1,21.087,10.0]
[1680382027369,113.294,21.103,21.087,10.0]
[1680382027959,14.3017907,21.102,21.087,10.0]
[1680382029763,113.294,21.103,21.087,10.0]
[1680382029961,113.294,21.103,21.091,10.0]
[1680382030147,113.294,21.103,21.092,17.0]
[1680382030653,113.294,21.103,21.093,10.0]
[1680382033355,17.0,21.102,21.089,10.0]
[1680382033554,113.294,21.103,21.09,20.0]
[1680382033964,108.3763,21.109,21.091,10.0]
[1680382034158,217.4527,21.109,21.091,10.0]
[1680382034559,10.0,21.108,21.091,10.0]
[1680382034879,10.0,21.108,21.093,10.0]
[1680382035067,10.0,21.108,21.094,17.0]
[1680382035280,10.0,21.108,21.095,10.0]
[1680382037452,10.0,21.108,21.096,17.0]
[1680382038168,217.4527,21.109,21.096,17.0]
[1680382047180,217.4527,21.109,21.095,10.0]
[1680382047364,10.0,21.108,21.095,10.0]
[1680382051162,10.0,21.108,21.093,10.0]
[1680382051482,10.0,21.108,21.094,17.0]
[1680382051871,10.0,21.108,21.095,10.0]
[1680382057690,217.4527,21.109,21.095,10.0]
[1680382057984,217.4527,21.109,21.097,10.0]
[1680382061080,217.4527,21.109,21.099,10.0]
[1680382066994,108.3763,21.109,21.1,17.0]
[1680382067191,108.3763,21.109,21.101,10.0]
[1680382067391,108.3763,21.109,21.102,17.0]
[1680382079695,108.3763,21.109,21.101,10.0]
[1680382080005,108.3763,21.109,21.099,10.0]
[1680382080205,108.3763,21.109,21.1,17.0]
[1680382084014,108.3763,21.109,21.093,28.956804]
[1680382084213,17.0,21.108,21.093,28.956804]
[1680382084423,10.0,21.107,21.093,28.956804]
[1680382086014,108.3763,21.109,21.093,28.956804]
[1680382086315,108.3763,21.109,21.095,10.0]
[1680382086499,110.6562,21.108,21.096,17.0]
[1680382086694,110.6562,21.108,21.097,10.0]
[1680382102111,110.6562,21.108,21.094,10.0]
[1680382102313,27.0,21.107,21.077,94.888]
[1680382102509,27.0,21.107,21.091,30.0]
[1680382103113,10.0,21.106,21.092,10.0]
[1680382103315,17.0,21.105,21.092,10.0]
[1680382103508,110.6562,21.108,21.092,10.0]
[1680382103703,110.6562,21.108,21.093,17.0]
[1680382104100,110.6562,21.108,21.094,10.0]
[1680382105805,110.6562,21.108,21.095,17.0]
[1680382106118,110.6562,21.108,21.096,10.0]
[1680382111419,110.6562,21.108,21.097,17.0]
[1680382111621,110.6562,21.108,21.098,10.0]
[1680382114823,110.6562,21.108,21.1,10.0]
[1680382115025,110.6562,21.108,21.102,10.0]
[1680382115826,110.6562,21.108,21.1,10.0]
[1680382116127,110.6562,21.108,21.101,17.0]
[1680382127934,108.3763,21.109,21.101,17.0]
[1680382128925,108.3763,21.109,21.102,10.0]
[1680382129129,108.3763,21.109,21.103,17.0]
[1680382129325,114.1326,21.119,21.103,17.0]
[1680382129734,114.1326,21.119,21.104,10.0]
[1680382129954,114.1326,21.119,21.106,10.0]
[1680382130446,114.1326,21.119,21.107,17.0]
[1680382140437,114.1326,21.119,21.104,10.0]
[1680382140635,114.1326,21.119,21.102,10.0]
[1680382140849,27.0,21.118,21.102,10.0]
[1680382141941,27.0,21.118,21.103,17.0]
[1680382143154,10.0,21.118,21.102,10.0]
[1680382143760,17.0,21.117,21.102,10.0]
[1680382143937,17.0,21.117,21.101,10.0]
[1680382144452,10.0,21.116,21.101,10.0]
[1680382144639,10.0,21.114,21.1,10.0]
[1680382144844,17.0,21.113,21.102,10.0]
[1680382145952,17.0,21.113,21.1,10.0]
[1680382146152,26.73,21.11,21.092,43.48533698]
[1680382146339,128.9646,21.109,21.09,50.0]
[1680382146649,10.0,21.108,21.092,10.0]
[1680382146954,125.2299,21.108,21.092,10.0]
[1680382152859,10.0,21.106,21.092,10.0]
[1680382153267,9.0,21.106,21.092,10.0]
[1680382154364,17.0,21.107,21.092,10.0]
[1680382167785,115.2299,21.108,21.093,17.0]
[1680382168291,115.2299,21.108,21.094,10.0]
[1680382168590,115.2299,21.108,21.096,10.0]
[1680382172690,115.2299,21.108,21.098,10.0]
[1680382180202,111.9646,21.109,21.098,10.0]
[1680382180397,111.9646,21.109,21.1,10.0]
[1680382183105,111.9646,21.109,21.102,10.0]
[1680382185012,111.9646,21.109,21.1,10.0]
[1680382185405,111.9646,21.109,21.098,10.0]
[1680382186803,111.9646,21.109,21.1,10.0]
[1680382188017,111.9646,21.109,21.098,10.0]
[1680382193516,111.9646,21.109,21.098,10.0]
[1680382199314,111.9646,21.109,21.099,17.0]
[1680382199713,111.9646,21.109,21.1,10.0]
[1680382210622,111.9646,21.109,21.098,10.0]
[1680382214715,111.9646,21.109,21.099,17.0]
[1680382214915,111.9646,21.109,21.1,10.0]
[1680382218934,111.9646,21.109,21.098,14.46690262]
[1680382219235,111.9646,21.109,21.096,10.0]
[1680382219619,117.3,21.108,21.096,10.0]
[1680382225957,117.3,21.108,21.095,10.0]
[1680382226243,17.0,21.107,21.09,94.887]
[1680382226542,17.0,21.107,21.093,30.0]
[1680382226743,10.0,21.106,21.093,30.0]
[1680382228420,10.0,21.106,21.09,71.18]
[1680382229721,10.0,21.106,21.09,50.0]
[1680382229925,17.0,21.105,21.09,50.0]
[1680382230223,10.0,21.106,21.09,50.0]
[1680382230417,111.9646,21.109,21.091,17.0]
[1680382230732,111.9646,21.109,21.092,10.0]
[1680382230940,111.9646,21.109,21.093,17.0]
[1680382231235,111.9646,21.109,21.094,10.0]
[1680382231435,111.9646,21.109,21.096,10.0]
[1680382231829,111.9646,21.109,21.097,17.0]
[1680382232017,111.9646,21.109,21.098,10.0]
[1680382243563,111.9646,21.109,21.1,10.0]
[1680382249956,111.9646,21.109,21.098,10.0]
[1680382253161,111.9646,21.109,21.095,10.0]
[1680382253339,17.0,21.108,21.094,10.0]
[1680382253541,10.0,21.107,21.094,10.0]
[1680382254548,10.0,21.105,21.093,18.956844]
[1680382255752,10.0,21.105,21.09,63.48775329]
[1680382256744,10.0,21.105,21.09,82.44709129]
[1680382258057,10.0,21.107,21.09,82.44709129]
[1680382258255,17.0,21.106,21.09,82.44709129]
[1680382264658,10.0,21.105,21.09,82.44709129]
[1680382264857,17.0,21.104,21.092,10.0]
[1680382272468,17.0,21.104,21.091,10.0]
[1680382272665,17.0,21.104,21.09,38.959338]
[1680382273050,17.0,21.104,21.09,20.0]
[1680382273255,10.0,21.103,21.089,20.0]
[1680382273548,17.0,21.102,21.089,20.0]
[1680382274059,17.0,21.102,21.09,10.0]
[1680382274254,17.0,21.102,21.091,20.0]
[1680382279768,33.675,21.119,21.091,20.0]
[1680382279974,26.73,21.11,21.092,17.0]
[1680382280270,26.73,21.11,21.093,10.0]
[1680382280764,121.9646,21.109,21.093,10.0]
[1680382281166,10.0,21.106,21.093,10.0]
[1680382281475,17.0,21.105,21.093,10.0]
[1680382281663,17.0,21.105,21.092,10.0]
[1680382282462,10.0,21.104,21.092,10.0]
[1680382282665,17.0,21.103,21.092,10.0]
[1680382283570,17.0,21.103,21.091,20.0]
[1680382283791,10.0,21.102,21.09,10.0]
[1680382284075,17.0,21.101,21.092,10.0]
[1680382284573,17.0,21.103,21.092,10.0]
[1680382288176,17.0,21.103,21.091,20.0]
[1680382291289,10.0,21.106,21.091,20.0]
[1680382291481,23.676,21.118,21.092,10.0]
[1680382292986,10.0,21.106,21.092,10.0]
[1680382293176,17.0,21.105,21.092,10.0]
[1680382296881,17.0,21.105,21.091,20.0]
[1680382297070,10.0,21.104,21.091,20.0]
[1680382297270,17.0,21.103,21.091,20.0]
[1680382297470,17.0,21.103,21.091,10.0]
[1680382299290,10.0,21.104,21.091,10.0]
[1680382299495,17.0,21.103,21.091,10.0]
[1680382300194,17.0,21.105,21.091,10.0]
[1680382301897,10.0,21.104,21.091,10.0]
[1680382302093,17.0,21.103,21.091,10.0]
[1680382302586,17.0,21.103,21.09,20.0]
[1680382304490,21.36,21.1,21.086,18.962549]
[1680382304790,17.0,21.099,21.086,18.962549]
[1680382304979,10.0,21.098,21.086,18.962549]
[1680382305182,17.0,21.097,21.086,18.962549]
[1680382307098,10.0,21.096,21.086,18.962549]
[1680382307398,17.0,21.095,21.086,18.962549]
[1680382307594,10.0,21.096,21.086,18.962549]
[1680382308193,10.0,21.096,21.082,10.0]
[1680382308800,17.0,21.095,21.081,117.8251]
[1680382308976,10.0,21.094,21.081,117.8251]
[1680382309180,17.0,21.093,21.081,117.8251]
[1680382310372,17.0,21.093,21.08,10.0]
[1680382310579,17.0,21.093,21.082,10.0]
[1680382310779,17.0,21.095,21.082,10.0]
[1680382318285,17.0,21.095,21.08,10.0]
[1680382318485,20.0,21.094,21.08,10.0]
[1680382318685,17.0,21.093,21.079,18.969371]
[1680382319002,30.0,21.092,21.079,18.969371]
[1680382319198,17.0,21.091,21.079,18.969371]
[1680382319399,20.0,21.09,21.079,18.969371]
[1680382319603,17.0,21.089,21.079,18.969371]
[1680382329219,10.0,21.088,21.079,18.969371]
[1680382329396,17.0,21.087,21.079,18.969371]
[1680382329597,10.0,21.086,21.079,18.969371]
[1680382329796,17.0,21.085,21.079,18.969371]
[1680382330201,17.0,21.085,21.074,116.6585]
[1680382331322,17.0,21.085,21.071,95.05365652]
[1680382331616,10.0,21.084,21.071,43.65592274]
[1680382331818,17.0,21.083,21.071,43.65592274]
[1680382333405,20.0,21.082,21.071,43.65592274]
[1680382333606,10.0,21.08,21.067,119.7341]
[1680382333910,17.0,21.079,21.067,119.7341]
[1680382334107,17.0,21.079,21.063,43.65592274]
[1680382334304,10.0,21.078,21.063,43.65592274]
[1680382334511,17.0,21.077,21.063,43.65592274]
[1680382334717,17.0,21.077,21.064,10.0]
[1680382335311,17.0,21.077,21.063,43.65592274]
[1680382335519,17.0,21.077,21.065,84.232]
[1680382335903,17.0,21.077,21.063,43.65592274]
[1680382336818,10.0,21.076,21.062,108.2574]
[1680382337116,37.0,21.075,21.062,108.2574]
[1680382337607,10.0,21.074,21.062,108.2574]
[1680382337807,10.0,21.072,21.062,108.2574]
[1680382338017,37.0,21.071,21.062,108.2574]
[1680382338909,37.0,21.071,21.061,24.4553838]
[1680382339419,37.0,21.071,21.055,43.65592274]
[1680382339717,10.0,21.07,21.056,10.0]
[1680382340022,17.0,21.069,21.056,10.0]
[1680382340421,43.77,21.07,21.056,10.0]
[1680382340608,10.0,21.069,21.056,10.0]
[1680382340814,17.0,21.068,21.056,10.0]
[1680382341316,20.0,21.073,21.056,10.0]
[1680382341519,20.0,21.075,21.056,10.0]
[1680382342224,10.0,21.074,21.056,10.0]
[1680382342423,20.0,21.073,21.056,10.0]
[1680382343124,20.0,21.073,21.057,17.0]
[1680382343304,17.0,21.072,21.056,105.05365652]
[1680382343504,20.0,21.071,21.056,105.05365652]
[1680382344013,20.0,21.075,21.056,10.0]
[1680382344409,10.0,21.074,21.056,10.0]
[1680382344605,37.0,21.073,21.056,10.0]
[1680382345121,10.0,21.072,21.056,10.0]
[1680382345309,37.0,21.071,21.056,10.0]
[1680382346204,37.0,21.071,21.054,126.1809]
[1680382346410,10.0,21.07,21.054,116.1809]
[1680382346715,17.0,21.069,21.054,116.1809]
[1680382346910,17.0,21.069,21.055,10.0]
[1680382347628,17.0,21.069,21.054,116.1809]
[1680382347814,20.0,21.068,21.054,116.1809]
[1680382348127,17.0,21.067,21.054,116.1809]
[1680382348311,20.0,21.066,21.055,10.0]
[1680382348512,17.0,21.065,21.055,10.0]
[1680382348919,20.0,21.064,21.055,10.0]
[1680382349114,17.0,21.063,21.055,10.0]
[1680382349312,20.0,21.062,21.055,10.0]
[1680382349821,10.0,21.075,21.055,10.0]
[1680382350028,10.0,21.075,21.056,17.0]
[1680382350228,123.67367225,21.077,21.056,17.0]
[1680382350425,123.67367225,21.077,21.057,10.0]
[1680382351038,10.0,21.075,21.057,17.16059946]
[1680382351213,17.0,21.074,21.057,17.16059946]
[1680382352322,20.0,21.073,21.057,17.16059946]
[1680382352525,17.0,21.072,21.057,17.16059946]
[1680382352826,20.0,21.071,21.057,17.16059946]
[1680382353005,17.0,21.07,21.057,17.16059946]
[1680382360318,17.0,21.07,21.055,10.0]
[1680382361220,17.0,21.07,21.055,17.16059946]
[1680382363937,17.0,21.07,21.055,7.16059946]
[1680382364136,10.0,21.069,21.055,7.16059946]
[1680382364336,17.0,21.068,21.055,7.16059946]
[1680382365928,17.0,21.068,21.054,117.1313]
[1680382366826,10.0,21.067,21.054,117.1313]
[1680382367026,17.0,21.066,21.054,117.1313]
[1680382368830,17.0,21.066,21.055,10.0]
[1680382369844,17.0,21.068,21.055,10.0]
[1680382371742,26.77,21.07,21.055,10.0]
[1680382372345,147.39667225,21.077,21.055,10.0]
[1680382372551,20.0,21.074,21.055,10.0]
[1680382373749,17.0,21.073,21.055,10.0]
[1680382373952,20.0,21.072,21.055,10.0]
[1680382374141,17.0,21.071,21.055,10.0]
[1680382374341,20.0,21.07,21.055,10.0]
[1680382374545,17.0,21.069,21.055,10.0]
[1680382375143,10.0,21.068,21.055,10.0]
[1680382375355,17.0,21.067,21.055,10.0]
[1680382376351,17.0,21.067,21.054,117.1313]
[1680382376855,17.0,21.067,21.055,10.0]
[1680382379648,17.0,21.067,21.054,117.1313]
[1680382380054,17.0,21.067,21.055,10.0]
[1680382382267,17.0,21.069,21.055,10.0]
[1680382385469,136.7804,21.07,21.055,10.0]
[1680382386566,20.0,21.07,21.055,10.0]
[1680382386755,20.0,21.075,21.057,10.0]
[1680382388748,20.0,21.075,21.059,10.0]
[1680382389768,17.0,21.074,21.059,10.0]
[1680382390087,20.0,21.073,21.059,10.0]
[1680382397159,17.0,21.072,21.059,10.0]
[1680382397479,20.0,21.071,21.059,10.0]
[1680382399475,20.0,21.074,21.059,10.0]
[1680382399661,17.0,21.073,21.059,10.0]
[1680382399861,20.0,21.072,21.059,10.0]
[1680382409783,17.0,21.071,21.059,10.0]
[1680382410086,20.0,21.07,21.059,10.0]
[1680382413494,20.0,21.074,21.059,10.0]
[1680382413673,17.0,21.073,21.059,10.0]
[1680382413868,20.0,21.072,21.059,10.0]
[1680382414571,20.0,21.073,21.059,10.0]
[1680382414768,17.0,21.072,21.059,10.0]
[1680382414968,20.0,21.071,21.059,10.0]
[1680382415778,111.079,21.076,21.06,46.77]
[1680382415988,111.079,21.076,21.06,63.77]
[1680382416186,111.079,21.076,21.06,158.82365652]
[1680382416481,111.079,21.076,21.061,95.05365652]
[1680382416781,111.079,21.076,21.063,10.0]
[1680382416989,23.713,21.086,21.063,10.0]
[1680382417190,10.0,21.085,21.065,10.0]
[1680382417494,10.0,21.084,21.065,10.0]
[1680382419091,17.0,21.078,21.062,10.0]
[1680382419685,10.0,21.077,21.062,10.0]
[1680382419870,17.0,21.076,21.062,10.0]
[1680382420488,125.0728,21.076,21.062,10.0]
[1680382420682,10.0,21.075,21.062,10.0]
[1680382420884,10.0,21.073,21.061,10.0]
[1680382421081,17.0,21.072,21.061,10.0]
[1680382421788,17.0,21.074,21.061,10.0]
[1680382422577,10.0,21.073,21.061,10.0]
[1680382422779,17.0,21.072,21.061,10.0]
[1680382423690,16.5,21.072,21.061,10.0]
[1680382424003,10.0,21.075,21.061,10.0]
[1680382425801,17.0,21.074,21.061,10.0]
[1680382427274,17.0,21.075,21.061,10.0]
[1680382427780,108.0728,21.076,21.061,10.0]
[1680382428193,108.0728,21.076,21.062,17.0]
[1680382428498,108.0728,21.076,21.063,10.0]
[1680382433193,108.0728,21.076,21.064,17.0]
[1680382433399,108.0728,21.076,21.065,10.0]
[1680382437304,108.0728,21.076,21.065,10.0]
[1680382440991,108.0728,21.076,21.061,10.0]
[1680382441305,10.0,21.074,21.061,10.0]
[1680382441504,17.0,21.073,21.061,10.0]
[1680382441886,108.0728,21.076,21.061,10.0]
[1680382442086,17.0,21.075,21.061,10.0]
[1680382444004,108.0728,21.076,21.061,10.0]
[1680382444395,108.0728,21.076,21.064,10.0]
[1680382444588,108.0728,21.076,21.066,10.0]
[1680382445590,108.0728,21.076,21.067,23.733]
[1680382445795,108.0728,21.076,21.068,17.0]
[1680382446104,108.0728,21.076,21.069,10.0]
[1680382452111,108.0728,21.076,21.07,17.0]
[1680382452402,108.0728,21.076,21.071,10.0]
[1680382452707,108.7641,21.086,21.071,10.0]
[1680382453094,108.7641,21.086,21.072,17.0]
[1680382453309,108.7641,21.086,21.073,10.0]
[1680382453509,108.7641,21.086,21.074,17.0]
[1680382453807,108.7641,21.086,21.075,10.0]
[1680382455306,108.7641,21.086,21.076,17.0]
[1680382455517,108.7641,21.086,21.075,10.0]
[1680382459016,108.7641,21.086,21.073,10.0]
[1680382466998,108.7641,21.086,21.07,36.66]
[1680382466999,10.0,21.085,21.07,10.0]
[1680382467317,27.0,21.085,21.071,50.0]
[1680382467900,27.0,21.085,21.071,20.0]
[1680382468125,27.0,21.085,21.07,20.0]
[1680382469209,27.0,21.085,21.067,18.977522]
[1680382469411,20.0,21.084,21.067,18.977522]
[1680382469615,17.0,21.083,21.067,18.977522]
[1680382469929,20.0,21.082,21.067,18.977522]
[1680382470133,10.0,21.08,21.067,18.977522]
[1680382470335,17.0,21.079,21.067,18.977522]
[1680382470619,10.0,21.078,21.067,18.977522]
[1680382472419,17.0,21.079,21.067,18.977522]
[1680382477326,17.0,21.079,21.066,10.0]
[1680382481329,26.77,21.08,21.066,10.0]
[1680382481520,17.0,21.079,21.066,10.0]
[1680382481721,17.0,21.081,21.066,10.0]
[1680382482030,20.0,21.08,21.066,10.0]
[1680382482330,17.0,21.079,21.066,10.0]
[1680382484027,20.0,21.08,21.066,10.0]
[1680382484225,20.0,21.084,21.066,10.0]
[1680382484432,17.0,21.083,21.066,10.0]
[1680382484633,20.0,21.082,21.066,10.0]
[1680382484823,17.0,21.081,21.066,10.0]
[1680382485022,20.0,21.08,21.066,10.0]
[1680382485715,20.0,21.08,21.067,17.0]
[1680382485915,20.0,21.084,21.068,10.0]
[1680382486829,17.0,21.083,21.068,10.0]
[1680382487033,20.0,21.082,21.068,10.0]
[1680382487420,17.0,21.081,21.068,10.0]
[1680382487730,20.0,21.08,21.068,10.0]
[1680382490035,20.0,21.084,21.068,10.0]
[1680382490331,10.0,21.082,21.068,10.0]
[1680382490634,37.0,21.081,21.068,10.0]
[1680382496328,20.0,21.081,21.068,10.0]
[1680382496536,20.0,21.084,21.068,10.0]
[1680382497821,17.0,21.083,21.068,10.0]
[1680382498021,20.0,21.082,21.068,10.0]
[1680382499426,20.0,21.085,21.07,26.77]
[1680382499625,20.0,21.085,21.071,17.0]
[1680382499827,20.0,21.085,21.072,10.0]
[1680382500326,26.61,21.09,21.073,17.0]
[1680382500524,111.4299,21.094,21.073,17.0]
[1680382500734,10.0,21.093,21.074,10.0]
[1680382500937,10.0,21.093,21.075,17.0]
[1680382501135,10.0,21.093,21.076,10.0]
[1680382510739,10.0,21.093,21.076,9.5]
[1680382515557,10.0,21.093,21.076,9.0]
[1680382516745,26.77,21.09,21.073,7.16059946]
[1680382516946,125.1284,21.086,21.07,36.77]
[1680382517137,125.1284,21.086,21.072,30.0]
[1680382517341,10.0,21.085,21.072,30.0]
[1680382517540,10.0,21.085,21.073,10.0]
[1680382518956,10.0,21.085,21.073,9.5]
[1680382521473,17.0,21.086,21.073,9.5]
[1680382522381,17.0,21.086,21.073,9.0]
[1680382523083,10.0,21.085,21.073,9.0]
[1680382525284,10.0,21.085,21.073,8.5]
[1680382526991,27.0,21.086,21.073,8.5]
[1680382527584,27.0,21.086,21.073,8.0]
[1680382528986,10.0,21.085,21.073,8.0]
[1680382530189,27.0,21.086,21.073,8.0]
[1680382535994,17.0,21.086,21.073,8.0]
[1680382539099,10.0,21.085,21.07,10.0]
[1680382539395,17.0,21.084,21.07,10.0]
[1680382540498,17.0,21.086,21.07,10.0]
[1680382540896,10.0,21.085,21.07,10.0]
[1680382541098,17.0,21.084,21.07,10.0]
[1680382545500,17.0,21.085,21.07,10.0]
[1680382549204,10.0,21.084,21.07,10.0]
[1680382549498,17.0,21.083,21.07,10.0]
[1680382549702,17.0,21.083,21.071,20.0]
[1680382549877,17.0,21.083,21.064,482.72879277]
[1680382550078,17.0,21.083,21.054,109.3808]
[1680382550079,26.77,21.08,21.066,30.0]
[1680382550281,27.0,21.079,21.066,30.0]
[1680382550788,27.0,21.079,21.06,26.61]
[1680382551097,27.0,21.079,21.062,10.0]
[1680382565312,17.0,21.079,21.062,10.0]
[1680382565510,20.0,21.082,21.063,24.16059946]
[1680382565814,20.0,21.082,21.064,10.0]